Workbook

Sheet Title page
B9: LCA-AD
B10: Life Cycle Assessment in Conceptual Aircraft Design
B11: Version 1.01 - March 2016
B13: LCA allows the user to conduct a life cycle assessment in conceptual aircraft design.
B14: From simple input parameters, such as "number of passengers", the user can calculate the environmental impact of an aircraft.
B19: LCA AD is a project by the Aircraft Design and Systems Group (AERO) at Hamburg University of Applied Sciences (HAW Hamburg).
B20: This project is being supported by the German Federal Environmental Foundation through a doctoral scholarship.
B30: Copyright © 2016
B31: Andreas Johanning, Dieter Scholz
B38: LCA AD is free software: you can redistribute it and/or modify
B39: it under the terms of the GNU General Public License as published by
B40: the Free Software Foundation, License Version 3.
B42: LCA AD is distributed in the hope that it will be useful,
B43: but WITHOUT ANY WARRANTY; without even the implied warranty of
B44: MERCHANTABILITY or FITNESS FOR A PARTICULAR PURPOSE.
B45: See the GNU General Public License for more details.
B47: http://www.gnu.org/licenses/

Sheet LCA
A1: Life Cycle Assessment in Conceptual Aircraft Design
B3: Quick start guide
B5: The tool consists of four sections covering the four phases of a Life Cycle Assessment (LCA). The pluses and minuses on the left side can be used to navigate within the sections of the tool.
B6: The entire required input data has to be entered in Section 2.1.1. Whenever a cell has a white background color, it is an input cell and the user can enter a value.
B7: Cells with a grey background should normally not be changed. However, advanced users are invited to also play around with these cells.
B8: To protect the user from unwanted modifications of the tool, the sheets and the workbook are protected (with the exception of the white input cells).
B9: In case a user wants to make changes in protected areas, he simply has to unprotect the respective sheets or the workbook.
B10: The final results of the LCA are presented in Section 3.3. The Single Score calculated in Seciton 3.3 represents the total Environmental Impact (EI) of an aircraft expressed in one score.
B11: The sheet "LCA_Stat" provides statistics that have been used to determine several required parameters. Whenever such a statistical value is used, there is also a link to the respective statistic.
B12: The sheet "LCA_Lit" provides the references used to determine several parameters. Whenever such a reference value is used, there is also a link to the respective reference.
B13: The tool is based on several publications:
B14: "A First Step Towards The Integration Of Life Cycle Assessment Into Conceptual Aircraft Design" from DLRK 2013
B15: "Adapting Life Cycle Impact Assessment Methods for Application in Aircraft Design" from DLRK 2014
B16: "Comparison of the Potential Environmental Impact Improvements of Future Aircraft Concepts Using Life Cycle Assessment" from CEAS 2015
B17: Equations from these publications are also displayed in the tool to make it more easily understandable for readers of the paper.
B18: In order to properly run the tool, macros have to be activated. When the tool is opened, a pop-up will appear asking the user to enable macros.
A21: 1 | B21: Goal and Scope Definition
B23: The product system considered within this LCA is a passenger aircraft.
B25: The presented LCA has several goals:
B26: 1) Finding the driving emissions, processes and life cycle phases for the environmental impact of passenger aircraft
B27: 2) Identifiying the most important environmental impact categories of passenger aircraft
B28: 3) Calculating the environmental impact of nowadays passenger aircraft
B29: 4) Using the environmental impact within aircraft design optimization to investigate the improvement potential of future aircraft concepts concerning environmental impact
B30: 5) Providing a simple but comprehensive LCA methodology for aircraft that can easily be integrated into any conceptual aircraft design tool
B32: Passenger-kilometer (PKM) is chosen as functional unit. This means that all results of the presented calculations will refer to the transport of one passenger over one kilometer.
B33: In this tool, PKM always refers to the actually transported number of passengers and their kilometers travelled.
B35: System boundaries: Cradle to grave
B36: A top-down approach is used to break down the life cycle phases into their sub-processes.
B37: The considered sub-processes are shown in the following picture:
B55: A further breakdown of these sub-processes leads to processes where most of the data is secret, not publicly available or simply still unknown in the considered early design phase.
B56: Therefore the presented LCA is limited to an analysis of the aforementioned higher-level processes.
B58: A passenger aircraft does not only transport passengers but also freight. Therefore only a part of the EI is considered to be caused by the transport of passengers.
B59: A physical allocation is chosen. Roughly 82 % of the transported payload mass comes from the transport of passengers.
B60: As default value, 82 % of the emissions caused over the life-cycle are therefore allocated to the transport of passengers. This value can be adapted by the user.
B62: For the impact assessment, the ReCiPe endpoint method in the Hierarchist version, with World normalization and average weighting set is used: ReCiPe Endpoint (H), World ReCiPe H/A
A64: =A21+1 -> 2 | B64: Life Cycle Inventory Analysis
A66: =$A$64 & ".1" -> 2.1 | B66: General Input and parameters
A68: =$A$66 & ".1" -> 2.1.1 | B68: General input data
B70: Input data from previous design phases
B72: Maximum number of seats | C72: nseat,max | D72: 180 | E72: [-]
B74: Maximum range @ maximum payload | C74: RMPL | D74: 1510 | E74: [NM]
B76: Operating empty mass | C76: mOE | D76: 41244 | E76: [kg]
B78: Type of energy carrier | D78: Kerosene
B80: ="Burned " & IF(D78="Kerosene","kerosene",IF(D78="Hydrogen","hydrogen",IF(D78="Alternative fuel","alternative fuel","?"))) & " mass @ average flight distance" -> Burned kerosene mass @ average flight distance | C80: mF,trip | D80: 4557 | E80: [kg]
B82: Battery mass needed | C82: mbat | D82: 23387 | E82: kg
B84: Specific energy (batteries) | C84: ebat | D84: 6.732 | E84: MJ/kg
B86: Battery cycles | C86: ncycle,bat | D86: 3000 | E86: [-]
B88: Electric energy consumption @ average distance traveled | C88: Ebat,trip | D88: 15582.41528 | E88: [kWh]
B90: Method of electric energy production | D90: European Electricity Mix
B92: Method of hydrogen production | D92: Natural gas steam reforming / European Electricity Mix
B94: Method of alternative fuel production | D94: Hydrogenated Vegetable Oil / European Electricity Mix
B96: Flight time @ average distance traveled | C96: tf,av | D96: 1.7 | E96: [h]
B98: Flight level | C98: FL | D98: 390 | E98: [-]
B100: Taxi time | D100: Own value | G100: >>>>> | I100: Taxi time (suggested value) | J100: ttaxi | K100: 0.25 | L100: [h]
B102: Taxi time | C102: ttaxi | D102: 0.25 | E102: [h]
B104: Turnaround time | D104: Own value | G104: >>>>> | I104: Turnaround time (suggested value) | J104: tTA | K104: 0.5 | L104: [h]
B106: Turnaround time | C106: tTA | D106: 0.5 | E106: [h]
B108: Select aircraft with similar engine emission characteristics | D108: A320-200
B110: Select way of calculating the material distribution | D110: Use suggested values
B112: Wing mass | C112: mW | D112: 7402 | E112: [kg] | I112: Percentage of aluminum | J112: pm,Al | K112: 72 | L112: [%]
B114: Main landing gear mass | C114: mMLG | D114: 2561 | E114: [kg] | I114: Percentage of steel | J114: pm,St | K114: 7 | L114: [%]
B116: Nose landing gear mass | C116: mNLG | D116: 431 | E116: [kg] | I116: Percentage of composites | J116: pm,Co | K116: 12 | L116: [%]
B118: Fuselage mass | C118: mF | D118: 7224 | E118: [kg] | I118: Percentage of titanium | J118: pm,Ti | K118: 6 | L118: [%]
B120: Vertical Stabilizer mass | C120: mV | D120: 833 | E120: [kg] | I120: Percentage of misc. | J120: pm,Mi | K120: =100-SUM(K112+K114+K116+K118) -> 3 | L120: [%]
B122: Horizontal Stabilizer mass | C122: mH | D122: 1648 | E122: [kg]
B124: Engines mass | C124: mE | D124: 8634 | E124: [kg]
B126: Choose aircraft with similar material distribution | D126: A330 | I126: Suggested percentage of aluminum | J126: pm,Al | K126: =VLOOKUP($D$126,LCA_Stat!$B$59:$G$60,2,FALSE) -> 72 | L126: [%]
I128: Suggested percentage of steel | J128: pm,St | K128: =VLOOKUP($D$126,LCA_Stat!$B$59:$G$60,3,FALSE) -> 7 | L128: [%]
I130: Suggested percentage of composites | J130: pm,Co | K130: =VLOOKUP($D$126,LCA_Stat!$B$59:$G$60,4,FALSE) -> 12 | L130: [%]
I132: Suggested percentage of titanium | J132: pm,Ti | K132: =VLOOKUP($D$126,LCA_Stat!$B$59:$G$60,5,FALSE) -> 6 | L132: [%]
I134: Suggested percentage of misc. | J134: pm,Mi | K134: =VLOOKUP($D$126,LCA_Stat!$B$59:$G$60,6,FALSE) -> 3 | L134: [%]
B137: Other inputs
B139: Average load factor | D139: Own value | G139: >>>>> | I139: Average load factor (suggested value) | J139: plf | K139: =LCA_Stat!C227/100 -> 0.81
B141: Average load factor | C141: plf | D141: 0.8
B143: Percentage of average distance traveled compared to RMPL | D143: Use suggested value | G143: >>>>> | I143: Average distance traveled compared to RMPL (suggested value) | J143: pd | K143: 0.39
B145: Average distance traveled compared to RMPL | C145: pd | D145: 0.39
B147: Number of years in the operational phase | D147: Use suggested value | G147: >>>>> | I147: Number of years in the operational phase (suggested value) | J147: na,o | K147: =LCA_Stat!F199 -> 25 | L147: [-]
B149: Number of years in the operational phase | C149: na,o | D149: 30 | E149: [-] | J149: Source: Flight International, 22.01.2008, "Airbus begins tests to extend service life of A320 family"
B151: Total number of aircraft built | D151: Own value
B153: Choose similar aircraft family | D153: A380-family | G153: >>>>> | I153: Total number of aircraft built (suggested value) | J153: na/c,b | K153: =ROUND(VLOOKUP(D153,LCA_Stat!B48:E50,4,FALSE),-3) -> 2000 | L153: [-]
B155: Total number of aircraft built | C155: na/c,b | D155: 20000 | E155: [-]
B157: Development costs | D157: Own value
B159: Choose aircraft with similar expected development costs | D159: Cseries | G159: >>>>> | I159: Development costs (suggested value) | J159: cdev | K159: =VLOOKUP(D159,LCA_Stat!B100:C105,2,FALSE) -> 3.9 | L159: [bn USD]
B161: Development costs | C161: cdev | D161: 12 | E161: [bn USD]
B163: Exchange rate: USD to Euro | C163: cUSD,EUR | D163: 0.75 | E163: [EUR]
B168: Inputs for impact assessment
B170: Use of suggested settings for impact assessment? | D170: Own Settings
B172: Choose perspective and region | D172: Hierarchist, World | I172: Perspective and region | J172: Hierarchist, World
B174: Choose weighting | D174: Average | I174: Weighting | J174: Average
B176: Adaption due to contrails and NOx emissions? | D176: Yes | I176: Adaption due to contrails and NOx emissions? | J176: Yes
A179: =LEFT(A68,4) & RIGHT(A68,1) + 1 -> 2.1.2 | B179: General parameters
B181: General parameters
B183: Ratio of sold seats to max. number of seats | C183: pseat | D183: =LCA_Stat!C40 -> 0.8356167827
B185: Average number of sold seats | C185: nseat | D185: =ROUND(D72*D183,0) -> 150 | E185: [-]
B187: Average number of PAX per flight | C187: nPAX | D187: =ROUND(D72*D183*IF(D139="Own value",D141,IF(D139="Use suggested value",K139,"?")),0) -> 120 | E187: [-]
B189: Average distance traveled per flight [NM] | C189: df | D189: =D74*IF(D143="Own value",D145,IF(D143="Use suggested value",K143,"?")) -> 588.9 | E189: [NM]
B191: Average distance traveled per flight [km] | C191: df | D191: =D189*NM_to_m/1000 -> 1090.6428 | E191: [km] | I191: Source: Redesign A320 (because average flight time = 1.82 h from Reference: 2) - "D:\Sonstiges\Kongresse\DLRK 2013\Paper\Sonstiges\Redesign_A320_200_PrOPerA_13_04_19 - updated 13-10-09.xlsm"
B193: Percentage of passenger mass on total payload mass of passenger aircraft | C193: palo,PAX | D193: =1-ROUND(LCA_Stat!M253,2) -> 0.82
B195: Percentage of passengers mass on total payload mass at airports | C195: palo,PAX,FH | D195: =ROUND(LCA_Stat!M257,2) -> 0.7
B198: Number of flights per year
B200: Aircraft utilization factor | C200: kU1 | D200: =IF(D189<1000,3994,IF(AND(D189<=1000,D189<=2000),5158,6566)) -> 3994 | E200: [h]
B202: Aircraft utilization factor | C202: kU2 | D202: =IF(D189<1000,IF(D104="Own value",D106,IF(D104="Use suggested value",K104,"?"))+IF(D100="Own value",D102,IF(D100="Use suggested value",K100,"?")),IF(AND(D189>=1000,D189<=2000),1.65,3.302)) -> 0.75 | E202: [h]
B204: Utilization | C204: Ua,f | D204: =D96*D200/(D96+D202) -> 2771.346939 | E204: [h]
B206: Number of flights per year (on average distance traveled) | C206: nf,a | D206: =D204/D96 -> 1630.204082 | E206: [-]
B209: Number of passenger kilometers
B211: Average number of passenger-kilometers per flight | C211: PKMf | D211: =D187*D191 -> 130877.136 | E211: [PKM/flight]
B213: Average number of PAX per year | C213: nPAX,a | D213: =D187*D206 -> 195624.4898 | E213: [-]
B215: Average distance travelled per year | C215: da | D215: =D206*D191 -> 1777970.344 | E215: [km]
B217: Average number of passenger-kilometers per year | C217: PKMa | D217: =D187*D215 -> 213356441.3 | E217: [PKM/year]
B219: Number of flight-cycles in the operational life | C219: nf,l | D219: =IF(D147="Own value",D149,IF(D147="Use suggested value",K147,"?"))*D206 -> 40755.10204 | E219: [-]
B221: Average number of PAX in the operational life | C221: nPAX,l | D221: =D213*IF(D147="Own value",D149,IF(D147="Use suggested value",K147,"?")) -> 4890612.245 | E221: [-]
B223: Average distance traveled in the operational life | C223: dl | D223: =IF(D147="Own value",D149,IF(D147="Use suggested value",K147,"?"))*D215 -> 44449258.6 | E223: [km]
B225: Average number of passenger-kilometers in the operational life | C225: PKMl | D225: =D187*D223 -> 5333911032 | E225: [PKM/aircraft]
B227: Average distance traveled per aircraft fleet | C227: dfam | D227: =IF(D151="Own value",D155,IF(D151="Use suggested value",K153,"?"))*D223 -> 8.889851721e+11 | E227: [PKM/aircraft]
B229: Average number of passenger-kilometers per aircraft fleet | C229: PKMfam | D229: =D187*D227 -> 1.066782206e+14 | E229: [PKM/fleet]
A232: =$A$64 & "." & RIGHT(A66,1)+1 -> 2.2 | B232: Design and Development
A234: =$A$232 & ".1" -> 2.2.1 | B234: Computer use during aircraft design
B236: Inputs
B238: Development costs | C238: cew | D238: =D163*IF(D157="Own value",D161,IF(D157="Use suggested value",K159,"?"))*10^9 -> 9000000000 | E238: [Euro]
B240: Estimated share of engineering costs from total costs | C240: ping | D240: 75 | E240: [%]
B242: Average monthly engineering salary | C242: cing,m | D242: =50000/12 -> 4166.666667 | E242: [Euro]
B244: Average monthly working days | C244: dm | D244: 21.75 | E244: [d]
B246: Average monthly working hours | C246: hm | D246: 176 | E246: [h]
B249: Calculation of the electric energy consumption
B251: Average engineering salary per hour | C251: cing,h | D251: =D242/D246 -> 23.67424242 | E251: [Euro]
B253: Average engineering salary per hour | C253: cing,h | D253: =D251/D163 -> 31.56565657 | E253: [USD]
B255: Engineering Development Hours | C255: nh | D255: =IF(D157="Own value",D161,IF(D157="Use suggested value",K159,"?"))*10^9*D240/100/D253 -> 285120000 | E255: [h]
B257: Engineering Development Days | C257: nd | D257: =D255/8 -> 35640000 | E257: [d]
B259: Electric energy consumption of an office computer in 4 years | C259: E4a | D259: 305 | E259: [kWh] | I259: Source: Reference 6
B261: Average working days per year | C261: da | D261: 250 | E261: [-]
B263: Electric energy consumption of an office computer per day | C263: Ed | D263: =D259/4/D261 -> 0.305 | E263: [kWh]
B265: Computer Energy Consumption per Aircraft Development | C265: E | D265: =D263*D257 -> 10870200 | E265: [kWh]
B267: Elec. Energy Consumption due to comp. use during a/c design per PKM | C267: EPKM | D267: =D193*D265/IF(D151="Own value",D155,IF(D151="Use suggested value",K153,"?"))/D225 -> 8.355561187e-08 | E267: [kWh/PKM]
B270: Emissions per kWh (Source: Reference 9)
B272: Emission factor CO2 | C272: IOFCO2 | D272: 0.56 | E272: [kg/kWh] | I272: CO2 due to computer use | J272: xCO2 | K272: =$D$265*D272 -> 6087312 | L272: [kg]
B274: Emission factor Hard coal; 26.3 MJ/kg | C274: IOFhard_coal | D274: 0.081 | E274: [kg/kWh] | I274: Hard coal; 26.3 MJ/kg due to computer use | J274: xhard_coal | K274: =$D$265*D274 -> 880486.2 | L274: [kg]
B276: Emission factor Natural gas; 44.1 MJ/kg | C276: IOFnatural_gas | D276: 0.041 | E276: [kg/kWh] | I276: Natural gas; 44.1 MJ/kg due to computer use | J276: xnatural_gas | K276: =$D$265*D276 -> 445678.2 | L276: [kg]
B278: Emission factor Brown coal; 11.9 MJ/kg | C278: IOFbrown_coal | D278: 0.12 | E278: [kg/kWh] | I278: Brown coal; 11.9 MJ/kg due to computer use | J278: xbrown_coal | K278: =$D$265*D278 -> 1304424 | L278: [kg]
B280: Emission factor Crude oil; 42.3 MJ/kg | C280: IOFcrude_oil | D280: 0.017 | E280: [kg/kWh] | I280: Crude oil; 42.3 MJ/kg due to computer use | J280: xcrude_oil | K280: =$D$265*D280 -> 184793.4 | L280: [kg]
B282: Emission factor SO2 | C282: IOFSO2 | D282: 0.0033 | E282: [kg/kWh] | I282: SO2 due to computer use | J282: xSO2 | K282: =$D$265*D282 -> 35871.66 | L282: [kg]
B285: Emissions per PKM due to computer use during aircraft design
B287: CO2 per PKM | C287: xPKM,CO2 | D287: =K272*10^3/$D$229*$D$193 -> 4.679114265e-05 | E287: [g/PKM]
B289: Hard coal; 26.3 MJ/kg per PKM | C289: xPKM,hard_coal | D289: =K274*10^3/$D$229*$D$193 -> 6.768004562e-06 | E289: [g/PKM]
B291: Natural gas; 44.1 MJ/kg per PKM | C291: xPKM,natural_gas | D291: =K276*10^3/$D$229*$D$193 -> 3.425780087e-06 | E291: [g/PKM]
B293: Brown coal; 11.9 MJ/kg per PKM | C293: xPKM,brown_coal | D293: =K278*10^3/$D$229*$D$193 -> 1.002667342e-05 | E293: [g/PKM]
B295: Crude oil; 42.3 MJ/kg per PKM | C295: xPKM,crude_oil | D295: =K280*10^3/$D$229*$D$193 -> 1.420445402e-06 | E295: [g/PKM]
B297: SO2 per PKM | C297: xPKM,SO2 | D297: =K282*10^3/$D$229*$D$193 -> 2.757335192e-07 | E297: [g/PKM]
A300: =LEFT(A234,4) & RIGHT(A234,1) + 1 -> 2.2.2 | B300: Wind tunnel tests
B302: Inputs
B304: Number of wind tunnel test days | C304: nWT,d | D304: =LCA_Stat!D189 -> 1670.666667 | E304: [-]
B306: Carbon footprint per wind tunnel test year | C306: IOFCO2eq | D306: 18600 | E306: [t CO2 eq/year]
B309: Calculation of the CO2 emissions
B311: Number of wind tunnel test years | C311: nWT,a | D311: =D304/365.25 -> 4.574036048 | E311: [-]
B313: Carbon footprint per aircraft development | C313: xCO2 | D313: =D311*D306 -> 85077.0705 | E313: [t CO2 eq/development]
B315: Carbon footprint per aircraft | C315: xCO2 | D315: =D313/IF(D151="Own value",D155,IF(D151="Use suggested value",K153,"?")) -> 4.253853525 | E315: [t CO2 eq/aircraft]
B318: Emissions per PKM due to wind tunnel test
B320: CO2 per PKM | C320: xPKM,CO2 | D320: =D313*10^6/$D$229*$D$193 -> 0.0006539591435 | E320: [g/PKM]
A323: =LEFT(A300,4) & RIGHT(A300,1) + 1 -> 2.2.3 | B323: Test flight campaign
B325: Inputs
B327: Number of test aircraft | C327: na/c,test | D327: =LCA_Stat!C211 -> 5 | E327: [-]
B329: Number of total flight test hours | C329: nh,z | D329: =LCA_Stat!C222 -> 3700 | E329: [h]
B331: Specific fuel consumption | C331: mF,h | D331: =ROUND(D80/D96,-2) -> 2700 | E331: [kg/h]
B334: Results
B336: Total mass of fuel burned | C336: mF | D336: =D329*D331 -> 9990000 | E336: [kg]
B340: Emissions due to fuel consumption during the flight test campaign
B342: O2 | C342: xO2 | D342: =$D$336*D$578*10^3 -> 33966000000 | E342: [g]
B344: CO2 | C344: xCO2 | D344: =$D$336*D$576*10^3 -> 31468500000 | E344: [g]
B346: H20 | C346: xH2O | D346: =$D$336*D$580*10^3 -> 12287700000 | E346: [g]
B348: SO2 | C348: xSO2 | D348: =$D$336*D$586 -> 8391600 | E348: [g]
B350: NOx | C350: xNOx | D350: =$D$336*D$582 -> 160612588.5 | E350: [g]
B352: CO | C352: xCO | D352: =$D$336*D$588 -> 17023441.3 | E352: [g]
B354: HC | C354: xHC | D354: =$D$336*D$584 -> 719335.9111 | E354: [g]
B357: Emissions due to the production of the flight test aircraft fleet:
B359: Crude oil; 42.3 MJ/kg | C359: xcrude_oil | D359: =SUM(K479,K500)*D327 -> 77646531.82 | E359: [g]
B361: CO2 | C361: xCO2 | D361: =SUM(K477,K492,K511)*D327 -> 2235899436 | E361: [g]
B363: Natural gas; 44.1 MJ/kg | C363: xnatural_gas | D363: =SUM(K475,K494,K515)*D327 -> 241954956.4 | E363: [g]
B365: Hard coal; 26.3 MJ/kg | C365: xhard_coal | D365: =SUM(K481,K496,K507)*D327 -> 289978562.7 | E365: [g]
B367: Brown coal; 11.9 MJ/kg | C367: xbrown_coal | D367: =SUM(K483,K498)*D327 -> 386606325.7 | E367: [g]
B369: SO2 | C369: xSO2 | D369: =SUM(K485,K502)*D327 -> 11092722.28 | E369: [g]
B371: PM10 | C371: xPM10 | D371: =SUM(K487,K517)*D327 -> 240436.0224 | E371: [g]
B373: Fe | C373: xFe | D373: =K509*D327 -> 3093217.512 | E373: [g]
B375: Mn | C375: xMn | D375: =K513*D327 -> 29217.2496 | E375: [g]
B378: Total emissions per PKM due to the flight test campaign
B380: O2 per PKM | C380: xPKM,O2 | D380: =D342/$D$229*$D$193 -> 0.0002610853446 | E380: [g/PKM]
B382: CO2 per PKM | C382: xPKM,CO2 | D382: =(D344+D361)/$D$229*$D$193 -> 0.0002590745081 | E382: [g/PKM]
B384: H20 per PKM | C384: xPKM,H2O | D384: =D346/$D$229*$D$193 -> 9.44514629e-05 | E384: [g/PKM]
B386: NOx per PKM | C386: xPKM,NOx | D386: =D350/$D$229*$D$193 -> 1.234575546e-06 | E386: [g/PKM]
B388: CO per PKM | C388: xPKM,CO | D388: =D352/$D$229*$D$193 -> 1.308535311e-07 | E388: [g/PKM]
B390: HC per PKM | C390: xPKM,HC | D390: =D354/$D$229*$D$193 -> 5.529295891e-09 | E390: [g/PKM]
B392: SO2 per PKM | C392: xPKM,SO2 | D392: =(D348+D369)/$D$229*$D$193 -> 1.497695047e-07 | E392: [g/PKM]
B394: Crude oil; 42.3 MJ/kg per PKM | C394: xPKM,crude_oil | D394: =D359/$D$229*$D$193 -> 5.968430641e-07 | E394: [g/PKM]
B396: PM10 per PKM | C396: xPKM,PM10 | D396: =D371/$D$229*$D$193 -> 1.848151733e-09 | E396: [g/PKM]
B398: Hard coal; 26.3 MJ/kg per PKM | C398: xPKM,hard_coal | D398: =D365/$D$229*$D$193 -> 2.228968762e-06 | E398: [g/PKM]
B400: Natural gas; 44.1 MJ/kg per PKM | C400: xPKM,natural_gas | D400: =D363/$D$229*$D$193 -> 1.859827274e-06 | E400: [g/PKM]
B402: Brown coal; 11.9 MJ/kg per PKM | C402: xPKM,brown_coal | D402: =D367/$D$229*$D$193 -> 2.971714237e-06 | E402: [g/PKM]
B404: Fe per PKM | C404: xPKM,Fe | D404: =D373/$D$229*$D$193 -> 2.377653418e-08 | E404: [g/PKM]
B406: Mn per PKM | C406: xPKM,Mn | D406: =D375/$D$229*$D$193 -> 2.245832798e-10 | E406: [g/PKM]
A409: =$A$64 & "." & RIGHT(A232,1)+1 -> 2.3 | B409: Production
A411: =$A$409 & ".1" -> 2.3.1 | B411: Use of Production Facilities
B413: Inputs/Outputs per sold seat due to the use of production facilities | E413: Reference
... 797 more rows

Sheet LCA_Stat
A1: Statistics used in sheet "LCA"
B3: Sold seats compared to max. number of seats
B8: AIRBUS DELIVERIES: 2007 (Through December 31)
C11: A318 | D11: A319 | E11: A320 | F11: A321 | G11: A300 | H11: A310 | I11: A330-200 | J11: A330-300 | K11: A340-200/300 | L11: A340-500 | M11: A340-600 | N11: A380 | O11: TOTAL
B12: Typical seating (Source: Airbus Website) | C12: 107 | D12: 124 | E12: 150 | F12: 185 | G12: 266 | H12: 220 | I12: 246 | J12: 300 | K12: 295 | L12: 313 | M12: 380 | N12: 525
B13: Maximum seating (Source: Airbus Website) | C13: 132 | D13: 156 | E13: 180 | F13: 220 | G13: 266 | H13: 220 | I13: 380 | J13: 440 | K13: 440 | L13: 375 | M13: 475 | N13: 853
B15: TOTAL | C15: 17 | D15: 105 | E15: 194 | F15: 51 | G15: 6 | H15: 0 | I15: 42 | J15: 26 | K15: 2 | L15: 1 | M15: 8 | N15: 1 | O15: =SUM(C15:N15) -> 453
B17: Total Typical Seats | C17: =C15*C12 -> 1819 | D17: 13020 | E17: 29100 | F17: 9435 | G17: 1596 | H17: 0 | I17: 10332 | J17: 7800 | K17: 590 | L17: 313 | M17: 3040 | N17: 525 | O17: =SUM(C17:N17) -> 77570
B18: Total Maximum Seats | C18: =C15*C13 -> 2244 | D18: 16380 | E18: 34920 | F18: 11220 | G18: 1596 | H18: 0 | I18: 15960 | J18: 11440 | K18: 880 | L18: 375 | M18: 3800 | N18: 853 | O18: =SUM(C18:N18) -> 99668
B22: Actually sold seats | C22: Reference
B24: Total energy consumption in 2007 | C24: 1929752 | D24: MWh
B25: Energy consumption per seat in 2007 | C25: 23.17 | D25: MWh/seat
B26: Number of seats sold | C26: =C24/C25 -> 83286.66379
B28: Total CO2 emissions in 2007 | C28: 219805 | D28: t
B29: CO2 emissions per seat in 2007 | C29: 2.64 | D29: t/seat
B30: Number of seats sold | C30: =C28/C29 -> 83259.4697
B33: Check:
B34: Total water consumption in 2007 | C34: 1961038 | D34: m³
B35: Water consumption per seat in 2007 | C35: 23.54 | D35: t/seat
B36: Number of seats sold | C36: =C34/C35 -> 83306.62702
B38: Average number of seats sold | C38: =AVERAGE(C26,C30,C36) -> 83284.2535
B40: Ratio: Number of sold seats / Maximum possible number of seats | C40: =C38/O18 -> 0.8356167827
B43: Number of aircraft built
C45: Nr. of seats | D45: Nr. of ordered aircraft | F45: Production finished? | H45: Comment
B46: A300 | C46: =G13 -> 266 | E46: 561 | F46: yes | H46: First Airbus aircraft | L46: Source: Airbus-Website
B47: A310 | C47: =H13 -> 220 | E47: 255 | F47: yes | H47: Shorter and further developed variant of the A300 | L47: Source: Airbus-Website
B48: A300-family | E48: =SUM(E46:E47) -> 816
B49: A320-family | C49: =E13 -> 180 | E49: =9649+9760 -> 19409 | F49: no | H49: Status at 30.06.2013: 9649 + 19520:2=9760 single-aisle aircraft until 2031 (Airbus Global Market Forecast from 2013) - (Assumption: Airbus and Boeing each produce half of the aircraft)
B50: A380-family | C50: =N13 -> 853 | E50: =262+1710 -> 1972 | F50: no | H50: Juley 2013: 262 orders (Airbus-Website) + 1710 very large aircraft until 2031 (from Reference: 3) - (Assumption: Airbus produces all very-large aircraft, because Boeing does not offer very-large aircraft)
B55: Component weight breakdown [%]
C58: Aluminum | D58: Steel | E58: Composites | F58: Titanium | G58: Misc. | H58: Source | I58: Comments
B59: A330 | C59: 72 | D59: 7 | E59: 12 | F59: 6 | G59: 3 | H59: Lopes | I59: Composites = CFRP + GFRP
B60: A350 | C60: 20 | D60: 7 | E60: 52 | F60: 14 | G60: 7 | H60: 5 material breakdown A350
B61: A380 | E61: 25 | H61: Airbus - Environmental Innovations Brochure
B65: A330-200 | C65: Wing | K65: Sum
C66: Aluminum | D66: Steel | E66: CFRP | F66: Titanium
C67: 36786 | D67: 1237 | E67: 3358 | F67: 2341 | K67: =SUM(C67:J67) -> 43722
C68: =C67/$K$67 -> 0.8413613284 | D68: =D67/$K$67 -> 0.02829239285 | E68: =E67/$K$67 -> 0.07680343992 | F68: =F67/$K$67 -> 0.05354283885
C69: Main landing gear
C70: Aluminum | D70: Steel | E70: CFRP | F70: Titanium
C71: 601 | D71: 10993 | E71: 100 | F71: 601 | K71: =SUM(C71:J71) -> 12295
C72: =C71/$K$71 -> 0.04888165921 | D72: =D71/$K$71 -> 0.894103294 | E72: =E71/$K$71 -> 0.008133387556 | F72: =F71/$K$71 -> 0.04888165921
C73: Nose landing gear
C74: Aluminum | D74: Steel | E74: CFRP | F74: Titanium
C75: 55 | D75: 1020 | E75: 82 | F75: 55 | K75: =SUM(C75:J75) -> 1212
C76: =C75/$K$75 -> 0.04537953795 | D76: =D75/$K$75 -> 0.8415841584 | E76: =E75/$K$75 -> 0.06765676568 | F76: =F75/$K$75 -> 0.04537953795
C77: Fuselage
C78: Aluminum | D78: Steel | E78: CFRP | F78: Titanium | G78: GFRP | H78: Nickel | I78: Misc.
C79: 23390 | D79: 189 | E79: 1760 | F79: 1250 | G79: 125 | H79: 0 | I79: 781 | K79: =SUM(C79:J79) -> 27495
C80: =C79/$K$79 -> 0.8507001273 | D80: 0.006873977087 | E80: 0.06401163848 | F80: 0.04546281142 | G80: 0.004546281142 | H80: 0 | I80: 0.02840516458
C81: Vertical Stabilizer
C82: Aluminum | D82: Steel | E82: CFRP | F82: Titanium | G82: GFRP
C83: 41 | D83: 0 | E83: 656 | F83: 0 | G83: 495 | K83: =SUM(C83:J83) -> 1192
C84: =C83/$K$83 -> 0.03439597315 | D84: =D83/$K$83 -> 0 | E84: =E83/$K$83 -> 0.5503355705 | F84: =F83/$K$83 -> 0 | G84: =G83/$K$83 -> 0.4152684564
C85: Horizontal Stabilizer
C86: Aluminum | D86: Steel | E86: CFRP | F86: Titanium | G86: GFRP
C87: 101 | D87: 0 | E87: 1722 | F87: 0 | G87: 54 | K87: =SUM(C87:J87) -> 1877
C88: =C87/$K$87 -> 0.05380927011 | D88: =D87/$K$87 -> 0 | E88: =E87/$K$87 -> 0.9174214172 | F88: =F87/$K$87 -> 0 | G88: =G87/$K$87 -> 0.02876931273
C89: Engines
C90: Aluminum | D90: Steel | E90: CFRP | F90: GFRP | G90: Titanium | H90: Nickel | I90: Misc.
C91: 929 | D91: 6949 | E91: 2065 | F91: 384 | G91: 3914 | H91: 2948 | I91: 1234 | K91: =SUM(C91:J91) -> 18423
C92: =C91/$K$91 -> 0.05042609781 | D92: 0.377191554 | E92: 0.1120881507 | F92: 0.02084351083 | G92: 0.2124518265 | H92: 0.1600173696 | I92: 0.06698149053
C94: =C154+C161 -> 1082 | D94: 6274 | E94: 2065 | F94: 1278 | G94: 3869 | H94: 2948 | I94: 912
B97: Development costs
C99: Development costs | G99: Source
B100: B787 | C100: 13.4 | D100: bn USD | E100: "Launch investment costs" | G100: Reference
B101: A380 | C101: 18 | D101: bn USD | E101: "Total development budget" | G101: Reference
B102: E-jet series | C102: 0.85 | D102: bn USD | E102: "Total development costs" | G102: Reference
B103: A350 | C103: 10 | D103: bn USD | G103: Wikipedia
B104: B777 | C104: 6.5 | D104: bn USD | E104: "6-7 Mrd. USD" | G104: Wikipedia
B105: Cseries | C105: 3.9 | D105: bn USD | G105: Reference
B108: Recycling
B110: A330-200:
B111: Wing | C111: Aluminum | D111: Steel | E111: CFRP | F111: Titanium
C112: 36786 | D112: 1237 | E112: 3358 | F112: 2341
B113: reused | C113: 0 | D113: 0 | E113: 0 | F113: 0
B114: recycled | C114: 0.7 | D114: 0.75 | E114: 0 | F114: 0.5
B115: incinerated | C115: 0 | D115: 0 | E115: 0.5 | F115: 0
B116: landfill | C116: 0.3 | D116: 0.25 | E116: 0.5 | F116: 0.5
B118: Main landing gear | C118: Aluminum | D118: Steel | E118: CFRP | F118: Titanium
C119: 601 | D119: 10993 | E119: 100 | F119: 601
B120: reused | C120: 0.8 | D120: 0.8 | E120: 0.8 | F120: 0.8
B121: recycled | C121: 0 | D121: 0 | E121: 0 | F121: 0
B122: incinerated | C122: 0 | D122: 0 | E122: 0 | F122: 0
B123: landfill | C123: 0.2 | D123: 0.2 | E123: 0.2 | F123: 0.2
B125: Nose landing gear | C125: Aluminum | D125: Steel | E125: CFRP | F125: Titanium
C126: 55 | D126: 1020 | E126: 82 | F126: 55
B127: reused | C127: 0.8 | D127: 0.8 | E127: 0.8 | F127: 0.8
B128: recycled | C128: 0 | D128: 0 | E128: 0 | F128: 0
B129: incinerated | C129: 0 | D129: 0 | E129: 0 | F129: 0
B130: landfill | C130: 0.2 | D130: 0.2 | E130: 0.2 | F130: 0.2
B132: Fuselage | C132: Aluminum | D132: Steel | E132: CFRP | F132: Titanium | G132: GFRP | H132: Nickel | I132: Misc.
C133: 23390 | D133: 189 | E133: 1760 | F133: 1250 | G133: 125 | H133: 0 | I133: 781
B134: reused | C134: 0 | D134: 0 | E134: 0 | F134: 0 | G134: 0 | I134: 0
B135: recycled | C135: 0.85 | D135: 0.85 | E135: 0 | F135: 0 | G135: 0 | I135: 0
B136: incinerated | C136: 0 | D136: 0 | E136: 0.5 | F136: 0.5 | G136: 0.5 | I136: 0.5
B137: landfill | C137: 0.15 | D137: 0.15 | E137: 0.5 | F137: 0.5 | G137: 0.5 | I137: 0.5
B139: Vertical Stabilizer | C139: Aluminum | D139: Steel | E139: CFRP | F139: Titanium | G139: GFRP
C140: 41 | D140: 0 | E140: 656 | F140: 0 | G140: 495
B141: reused | C141: 0 | E141: 0 | G141: 0
B142: recycled | C142: 0.64 | E142: 0 | G142: 0
B143: incinerated | C143: 0 | E143: 0.5 | G143: 0.5
B144: landfill | C144: 0.36 | E144: 0.5 | G144: 0.5
B146: Horizontal Stabilizer | C146: Aluminum | D146: Steel | E146: CFRP | F146: Titanium | G146: GFRP
C147: 101 | D147: 0 | E147: 1722 | F147: 0 | G147: 54
B148: reused | C148: 0 | E148: 0 | G148: 0
B149: recycled | C149: 0.64 | E149: 0 | G149: 0
B150: incinerated | C150: 0 | E150: 0.5 | G150: 0.5
B151: landfill | C151: 0.36 | E151: 0.5 | G151: 0.5
B153: Engine itself | C153: Aluminum | D153: Steel | E153: CFRP | F153: GFRP | G153: Titanium | H153: Nickel | I153: Misc.
C154: =2*(465+76) -> 1082 | D154: =2*(94+864) -> 1916 | E154: =2*216 -> 432 | F154: =2*447 -> 894 | G154: =2*1310 -> 2620 | H154: =2*1474 -> 2948 | I154: =2*456 -> 912
B155: reused | C155: 0.75 | D155: 0.75 | E155: 0.75 | F155: 0.75 | G155: 0.75 | H155: 0.75 | I155: 0.75
B156: recycled | C156: 0 | D156: 0 | E156: 0 | F156: 0 | G156: 0 | H156: 0 | I156: 0
B157: incinerated | C157: 0 | D157: 0 | E157: 0 | F157: 0 | G157: 0 | H157: 0 | I157: 0
B158: landfill | C158: 0.25 | D158: 0.25 | E158: 0.25 | F158: 0.25 | G158: 0.25 | H158: 0.25 | I158: 0.25
B160: Engine structure | C160: Aluminum | D160: Steel | E160: CFRP | F160: GFRP | G160: Titanium | H160: Nickel | I160: Misc.
C161: 0 | D161: =2*2179 -> 4358 | E161: =2*(140.5+62.5+351.5+30.5+39.5+192) -> 1633 | F161: =2*192 -> 384 | G161: =2*(140.5+62.5+351.5+30.5+39.5) -> 1249 | H161: 0 | I161: 0
B162: reused | D162: 0 | E162: 0 | F162: 0 | G162: 0
B163: recycled | D163: 0.8 | E163: 0 | F163: 0 | G163: 0
B164: incinerated | D164: 0 | E164: 0.5 | F164: 0.5 | G164: 0.5
B165: landfill | D165: 0.2 | E165: 0.5 | F165: 0.5 | G165: 0.5
C169: Aluminum | D169: Steel | E169: CFRP | F169: GFRP | G169: Titanium | H169: Nickel | I169: Misc. | J169: Total
B170: Total mass | C170: =SUM(C161+C154+C147+C140+C133+C126+C119+C112) -> 62056 | D170: 19713 | E170: 9743 | F170: 5525 | G170: 4543 | H170: 2948 | I170: 1693 | J170: =SUM(C170:I170) -> 106221
B171: Reused mass | C171: =C162*C$161+C155*C$154+C148*C$147+C141*C$140+C134*C$133+C127*C$126+C120*C$119+C113*C$112 -> 1336.3 | D171: 11047.4 | E171: 469.6 | F171: 1195.3 | G171: 1965 | H171: 2211 | I171: 684 | J171: =SUM(C171:I171) -> 18908.6
B172: % of total mass | C172: =C171/C$170 -> 0.02153377594 | D172: 0.5604119109 | E172: 0.04819870676 | F172: 0.2163438914 | G172: 0.4325335681 | H172: 0.75 | I172: 0.4040165387 | J172: 0.1780118809
B173: Recycled mass | C173: =C163*C161+C156*C$154+C149*C$147+C142*C$140+C135*C$133+C128*C$126+C121*C$119+C114*C$112 -> 45722.58 | D173: 4574.8 | E173: 0 | F173: 1170.5 | G173: 0 | H173: 0 | I173: 0 | J173: =SUM(C173:I173) -> 51467.88
B174: % of total mass | C174: =C173/C$170 -> 0.7367954751 | D174: 0.2320702075 | E174: 0 | F174: 0.2118552036 | G174: 0 | H174: 0 | I174: 0 | J174: 0.4845358262
B175: Incinerated mass | C175: =C164*C161+C157*C$154+C150*C$147+C143*C$140+C136*C$133+C129*C$126+C122*C$119+C115*C$112 -> 0 | D175: 0 | E175: 4564.5 | F175: 817 | G175: 961.5 | H175: 0 | I175: 390.5 | J175: =SUM(C175:I175) -> 6733.5
B176: % of total mass | C176: =C175/C$170 -> 0 | D176: 0 | E176: 0.4684901981 | F176: 0.1478733032 | G176: 0.2116442879 | H176: 0 | I176: 0.2306556409 | J176: 0.06339141978
B177: Landfill mass | C177: =C165*C161+C158*C$154+C151*C$147+C144*C$140+C137*C$133+C130*C$126+C123*C$119+C116*C$112 -> 14997.12 | D177: 4090.8 | E177: 4708.9 | F177: 2342.2 | G177: 1616.5 | H177: 737 | I177: 618.5 | J177: =SUM(C177:I177) -> 29111.02
B178: % of total mass | C178: =C177/C$170 -> 0.241670749 | D178: 0.2075178816 | E178: 0.4833110951 | F178: 0.4239276018 | G178: 0.355822144 | H178: 0.25 | I178: 0.3653278204 | J178: 0.2740608731
B181: Testing
B185: Windtunnel test | D185: Wind tunnel testing days | F185: Source: | H185: Comment:
C186: A380 | D186: 2212 | F186: Airbus presentation
C187: B787 | D187: 1800 | F187: Airbus presentation | H187: 15000 h according to http://www.boeing.com/boeing/companyoffices/gallery/images/commercial/787/k63038.page
C188: A350 | D188: 1000 | F188: Airbus presentation | H188: Graphic not 100 % readable
C189: Average | D189: =AVERAGE(D186:D188) -> 1670.666667
B192: Flight cycles/hours and years in the operational life
B194: For how many flight cycles/flight hours is an aircraft designed? (Design service goal)
D195: Flight cycles | E195: Flight hours | F195: Years | I195: Source:
C196: A380 | D196: =47500/2.5 -> 19000 | F196: 25 | I196: Reference
C198: A400M | D198: =25000/2.5 -> 10000 | I198: Aero-Aviation news | J198: Flight hours
B199: Design Service Goal | C199: A320 | D199: 48000 | E199: 60000 | F199: 25 | I199: Reference
B200: Extended Service Goal II | C200: A320 | D200: 90000 | E200: 180000 | I200: Reference
B203: Flight testing - Number of flight test aircraft and flight test hours
C205: Number of flight test aircraft | D205: Source | F205: Comments
B206: Cseries | C206: 5 | D206: Reference
B207: A350 | C207: 5 | D207: Reference
B208: B787 | C208: 7 | D208: Flugrevue - News (2) | F208: 6 test aircraft + 1 production aircraft
B209: A380 | C209: 5 | D209: Airbus presentation
B210: ARJ21 | C210: 4 | D210: Reference
B211: Average | C211: =MEDIAN(C206:C210) -> 5
C216: Number of flight test hours | D216: Source | F216: Comments
B217: CSeries | C217: 2500 | D217: Reference | F217: Planned test hours (not real test hours)
B218: A350 | C218: 2500 | D218: Reference
B219: B787 | C219: 4911 | D219: From Wikipedia: "FliegerRevue Oktober 2011, S. 10–11, Der Traum wird endlich wahr" | F219: Flugrevue - News (3) sagte voraus: 4794+24;
B220: A380 | C220: 2666 | D220: Airbus presentation | F220: 1846 take-offs --> on average 2666/1846 h per test flight
B221: ARJ21 | C221: =ROUND(4000/0.7,0) -> 5714 | D221: Reference | F221: Expected flight test hours (not actual flight test hours) "In total, the four ARJ21 flight test aircraft have completed more than 2,000 flight totalling some 4,000h, and covered about 70% of the necessary test programme."
B222: Average | C222: =ROUND(AVERAGE(C217:C221),-2) -> 3700
B225: Passenger load factor | C225: Reference
B227: 1. Average scheduled | C227: 81
B228: 1.1 European Routes | C228: 76
B229: 1.2 Long haul | C229: 83
B230: 2. Regional scheduled | C230: 71
B231: 3. Low cost airlines | C231: 86
B234: Passenger mass compared to cargo mass (in passenger aircraft and at airports; for allocation)
B236: Percentage of the freight in passenger aircraft | C236: 0.5 | D236: Reference
C238: Year
C239: 2003 | D239: 2004 | E239: 2005 | F239: 2006 | G239: 2007 | H239: 2008 | I239: 2009 | J239: 2010 | K239: 2011 | M239: Mittelwert
B240: Worldwide passenger and freight volume:
B241: PAX: [106 PKM] | C241: 3130475 | D241: 3571872 | E241: 3857622 | F241: 4098281 | G241: 4434885 | H241: 4523484 | I241: 4475848 | J241: 4831858 | K241: 5149693 | M241: =AVERAGE(C241:K241) -> 4230446.444
B242: PAX: [106 TKM] | C242: =C247-C244-C245 -> 291365 | D242: 331244 | E242: 357954 | F242: 380131 | G242: 408625 | H242: 419415 | I242: 409198 | J242: 445208 | K242: 475963 | M242: =M247-M244-M245 -> 391011.4444
B244: Freight: [106 TKM] | C244: 134379 | D244: 148624 | E244: 152339 | F244: 162402 | G244: 170205 | H244: 168569 | I244: 153606 | J244: 183980 | K244: 184532 | M244: =AVERAGE(C244:K244) -> 162070.6667
B245: Mail [106 TKM] | C245: 4177 | D245: 4223 | E245: 4295 | F245: 4182 | G245: 4156 | H245: 4625 | I245: 4372 | J245: 4595 | K245: 4737 | M245: =AVERAGE(C245:K245) -> 4373.555556
B247: Total [106 TKM] | C247: 429921 | D247: 484091 | E247: 514588 | F247: 546715 | G247: 582986 | H247: 592609 | I247: 567176 | J247: 633783 | K247: 665232 | M247: =AVERAGE(C247:K247) -> 557455.6667
B249: Freight in PAX-aircraft: [106 TKM] | C249: =(C244+C245)*$C$236 -> 69278 | D249: =(D244+D245)*$C$236 -> 76423.5 | E249: 78317 | F249: 83292 | G249: 87180.5 | H249: 86597 | I249: 78989 | J249: 94287.5 | K249: 94634.5 | M249: 83222.11111
B251: Total payload in PAX-aircraft [106 TKM] | C251: =C249+C242 -> 360643 | D251: 407667.5 | E251: 436271 | F251: 463423 | G251: 495805.5 | H251: 506012 | I251: 488187 | J251: 539495.5 | K251: 570597.5 | M251: =M249+M242 -> 474233.5556
B253: Percentage of freight on the payload mass of passenger aircraft | C253: =C249/C251 -> 0.1920957845 | D253: 0.187465275 | E253: 0.1795145678 | F253: 0.1797321238 | G253: 0.175836089 | H253: 0.1711362576 | I253: 0.1618007034 | J253: 0.1747697617 | K253: 0.1658515854 | M253: =M249/M251 -> 0.1754876055
B255: Percentage of freight on total payload mass in aircraft (total) | C255: =(C244+C245)/C247 -> 0.3222824658 | D255: 0.3157402224 | E255: 0.3043871991 | F255: 0.3046998893 | G255: 0.2990826538 | H255: 0.2922567831 | I255: 0.2785343527 | J255: 0.2975387475 | K255: 0.284515778 | M255: =(M244+M245)/M247 -> 0.2985784021
B257: Percentage of passenger mass on total payload mass in aircraft (total) | C257: =C242/C247 -> 0.6777175342 | D257: 0.6842597776 | E257: 0.6956128009 | F257: 0.6953001107 | G257: 0.7009173462 | H257: 0.7077432169 | I257: 0.7214656473 | J257: 0.7024612525 | K257: 0.715484222 | M257: =M242/M247 -> 0.7014215979

Sheet LCA_Lit
A1: References
A3: 1 | B3: AIRBUS, Test Programme and Certification, URL: http://www.airbus.com/company/aircraft-manufacture/how-is-an-aircraft-built/test-programme-and-certification/ (2013-09-01)
A4: 2 | B4: Kingsley-jones, Max: Airbus begins tests to extend service life of A320 family, London, UK : Flight International, 2008. URL: http://www.flightglobal.com/news/articles/airbus-begins-tests-to-extend-service-life-of-a320-family-220962/ (2013-09-01)
A5: 3 | B5: AIRBUS S.A.S.: Navigating the Future – Global Market Forecast 2012-2031. Blagnac Cedex, France, 2012 (D:\Sonstiges\Kongresse\DLRK 2013\Paper\Literature\General considerations\AIRBUS 2012 - Presentation - Global_Market_Forecast_2012.pdf)
A6: 4 | B6: International Civil Aviation Organization: Annual Report of the Council 2012. ICAO, Doc 10001, 2012. URL: http://www.icao.int/publications/Documents/10001_en.pdf (2013-09-01)
A7: 5 | B7: Bundesverband der Deutschen Luftverkehrswirtschaft, Luftfracht für Deutschland. Presentation, Frankfurt, BDL, August 2013. URL: http://www.bdl.aero/media/filer_public/b0/c4/b0c4465f-7da2-4e8f-9da2-fd50dd574c54/20130822_bl-ir_handout_fur_branchengesprach_luftfracht_21_08_2013_final.pdf (2013-09-01)
A8: 6 | B8: CHOI, B., SHIN, H., LEE, S., HUR, T., 2006. Life cycle assessment of a personal computer and its effective recycling rate. The International Journal of Life Cycle Assessment, Volume 11, pp.122-128.
A9: 7 | B9: BEELAERTS VAN BLOKLAND, W. W. A., VERHAGEN, W. J. C., SANTEMA, S. C., 2008, THE EFFECTS OF CO-INNOVATION ON THE VALUE-TIME CURVE: A QUANTITATIVE STUDY ON PRODUCT LEVEL. Journal of Business Market Management, Volume 2, Issue 1, pp.5-24.
A10: 8 | B10: EUROCONTROL, 2015. Standard Inputs for EUROCONTROL Cost-Benefit Analyses. Brüssel, Belgien: EUROCONTROL Headquarters, Edition Nr. 7.0.
A11: 9 | B11: ELCD 3.0 database, European Commission, DG Joint Research Centre, Institute for Environment and Sustainability, 2013. URL: http://lca.jrc.ec.europa.eu/lcainfohub/datasetArea.vm (2013-10-02)
A12: 10 | B12: FLIGHT INTERNATIONAL, 24-30 September 2013, "Worries ease as Cseries flies"
A13: 11 | B13: FLIGHT INTERNATIONAL, 24-30 September 2013, "Fluctuating costs bedevil programme"
A14: 12 | B14: FLIGHT INTERNATIONAL, 29 October - 4 November 2013, "Flutter trials near for MSN1 prototype as test fleet clears certification hurdles"
A15: 13 | B15: FLIGHT INTERNATIONAL, 1 - 7 October 2013, "ARJ21 'will enter service next year'"
A16: 14 | B16: FLIGHT GLOBAL, 31.01.2014, "Airlines begin push for discounted end-of-line 777s"
A17: 15 | B17: FLIGHT INTERNATIONAL, 2013-06-11, "Maturity in the Making" (p. 48-50)
A18: 16 | B18: FLIGHT GLOBAL, 14-02-18, "Pratt plans performance upgrade for A320neo engine"
A19: 17 | B19: JOHANNING, A. and SCHOLZ, D., 2013. A First Step Towards the Integration of Life Cycle Assessment into Conceptual Aircraft Design. In: Publikationen zum DLRK 2013 (Deutscher Luft- und Raumfahrtkongress, Stuttgart, 10. - 12. September 2013). URL: http://nbn-resolving.org/urn:nbn:de:101:1-201407183813 (Aufruf: 2015-10-14)
A20: 18 | B20: JOHANNING, A. and SCHOLZ, D., 2014. Adapting Life Cycle Impact Assessment Methods for Application in Aircraft Design. In: Publikationen zum DLRK 2014 (Deutscher Luft- und Raumfahrtkongress, Augsburg, 16. - 18. September 2014). URL: http://nbn-resolving.org/urn:nbn:de:101:1-201507202456 (Aufruf: 2015-10-12).
A21: 19 | B21: JOHANNING, A. and SCHOLZ, D., 2015. Comparison of the Potential Environmental Impact Improvements of Future Aircraft Concepts Using Life Cycle Assessment. In: CEAS: 5th CEAS Air&Space Conference : Proceedings (CEAS2015, Delft, 07. - 11. September 2015). DocumentID: 80. Download: http://Airport2030.ProfScholz.de
A22: 20 | B22: AIRBUS, "Towards Eco-Efficiency and Sustainable Development"
A23: 21 | B23: Flughafen Hamburg, Umwelterklärung 2011 - 2014
A24: 22 | B24: European EnvIronment Agency: EMEP/CORINAIR Emission Inventory Guidebook 2013, Technical report No 12/2013, 2013. URL: http://www.eea.europa.eu//publications/emep-eea-guidebook-2013 (2013-08-30)
